fUSD/lending_fUSD_20250125
["ID","MTS","AMOUNT","RATE_DAILY","PERIOD"]
[350379453,1737817848980,-304.8,0.00017807,2]
[350379454,1737817848990,-500.0,0.00017807,2]
[350379455,1737817848999,-500.0,0.00017807,2]
[350379456,1737817849009,-500.0,0.00017807,2]
[350379457,1737817849019,-500.0,0.00017807,2]
[350379458,1737817849029,-500.0,0.00017807,2]
[350379459,1737817849038,-500.0,0.00017807,2]
[350379460,1737817849048,-500.0,0.00017807,2]
[350379461,1737817849058,-500.0,0.00017807,2]
[350379462,1737817849068,-500.0,0.00017807,2]
[350379463,1737817849077,-500.0,0.00017807,2]
[350379464,1737817849086,-1337.53,0.00017807,2]
[350379465,1737817849095,-500.0,0.00017807,2]
[350379466,1737817849106,-657.38,0.00017807,2]
[350379467,1737817849116,-152.420175,0.00017807,2]
[350379468,1737817849126,-997.01,0.00017807,2]
[350379469,1737817849136,-500.0,0.00017807,2]
[350379470,1737817849147,-500.0,0.00017807,2]
[350379471,1737817849156,-500.0,0.00017807,2]
[350379472,1737817849165,-600.23,0.00017807,2]
[350379473,1737817849175,-530.0,0.00017807,2]
[350379474,1737817849185,-1729.67,0.00017807,2]
[350379475,1737817849195,-619.83,0.00017807,2]
[350379476,1737817849205,-500.0,0.00017807,2]
[350379477,1737817849216,-500.0,0.00017807,2]
[350379478,1737817849226,-624.67,0.00017807,2]
[350379479,1737817849236,-806.03,0.00017807,2]
[350379480,1737817849247,-984.41,0.00017807,2]
[350379481,1737817849257,-500.0,0.00017807,2]
[350379482,1737817849267,-500.0,0.00017807,2]
[350379483,1737817849277,-500.0,0.00017807,2]
[350379484,1737817849288,-500.0,0.00017807,2]
[350379485,1737817849298,-500.0,0.00017807,2]
[350379486,1737817849309,-1058.09,0.00017807,2]
[350379487,1737817849319,-500.0,0.00017807,2]
[350379488,1737817849330,-412.85388806,0.00017807,2]
[350379489,1737817849340,-500.0,0.00017807,2]
[350379490,1737817849350,-500.0,0.00017807,2]
[350379491,1737817849360,-961.97,0.00017807,2]
[350379492,1737817849371,-500.0,0.00017807,2]
[350379493,1737817849381,-1405.7,0.00017807,2]
[350379494,1737817849391,-500.0,0.00017807,2]
[350379495,1737817849402,-500.0,0.00017807,2]
[350379496,1737817849412,-500.0,0.00017807,2]
[350379497,1737817849425,-500.0,0.00017807,2]
[350379498,1737817849440,-500.0,0.00017807,2]
[350379499,1737817849451,-500.0,0.00017807,2]
[350379500,1737817849463,-500.0,0.00017807,2]
[350379501,1737817849474,-500.0,0.00017807,2]
[350379502,1737817849484,-500.0,0.00017807,2]
[350379503,1737817849495,-500.0,0.00017807,2]
[350379504,1737817849504,-500.0,0.00017807,2]
[350379505,1737817849517,-794.91,0.00017807,2]
[350379506,1737817849527,-430.64066539,0.00017809,2]
[350379507,1737817849536,-1000.0,0.00017862,2]
[350379508,1737817849547,-500.0,0.00017886,2]
[350379509,1737817849557,-706.44,0.00017886,2]
[350379510,1737817849567,-500.0,0.00017886,2]
[350379511,1737817849577,-838.96,0.00017886,2]
[350379512,1737817849587,-645.66,0.00017886,2]
[350379513,1737817849597,-1456.98,0.00017886,2]
[350379514,1737817849607,-255.84,0.00017886,2]
[350379515,1737817849616,-500.0,0.00017886,2]
[350379516,1737817849627,-500.0,0.00017886,2]
[350379517,1737817849636,-500.0,0.00017886,2]
[350379518,1737817849647,-1400.0,0.000179,6]
[350379519,1737817849657,-500.0,0.00017943,2]
[350379520,1737817849666,-500.0,0.00017943,2]
[350379521,1737817849676,-500.0,0.00017943,2]
[350379522,1737817849687,-442.97766772,0.00017943,2]
[350379523,1737817849697,-500.0,0.00017943,2]
[350379524,1737817849707,-500.0,0.00017943,2]
[350379525,1737817849717,-494.12,0.00017943,2]
[350379526,1737817849728,-500.0,0.00017943,2]
[350379527,1737817849739,-500.0,0.00017943,2]
[350379528,1737817849749,-532.28,0.00017943,2]
[350379529,1737817849759,-500.0,0.00017943,2]
[350379530,1737817849770,-500.0,0.00017943,2]
[350379531,1737817849780,-540.51,0.00017943,2]
[350379532,1737817849790,-500.0,0.00017943,2]
[350379533,1737817849801,-661.05,0.00017943,2]
[350379534,1737817849811,-500.0,0.00017943,2]
[350379535,1737817849822,-500.0,0.00017943,2]
[350379536,1737817849831,-189.14,0.00017943,2]
[350379537,1737817849841,-774.87,0.00017943,2]
[350379538,1737817849851,-500.0,0.00017943,2]
[350379539,1737817849861,-622.57,0.00017943,2]
[350379540,1737817849871,-511.59,0.00017943,2]
[350379541,1737817849882,-1023.31,0.00017943,2]
[350379542,1737817849892,-984.99,0.00017943,2]
[350379543,1737817849902,-500.0,0.00017943,2]
[350379544,1737817849912,-621.14,0.00017943,2]
[350379545,1737817849923,-1446.5,0.00017943,2]
[350379546,1737817849933,-500.0,0.00017943,2]
[350379547,1737817849943,-500.0,0.00017943,2]
[350379548,1737817849953,-500.0,0.00017943,2]
[350379549,1737817849964,-500.0,0.00017943,2]
[350379550,1737817849974,-500.0,0.00017943,2]
[350379551,1737817849984,-500.0,0.00017943,2]
[350379552,1737817849995,-710.7,0.00017943,2]
[350379553,1737817850004,-210.39555764,0.00017944,2]
[350379554,1737817850014,-500.0,0.00017944,2]
[350379555,1737817850023,-500.0,0.00017944,2]
[350379556,1737817850034,-500.0,0.00017944,2]
[350379557,1737817850044,-212.82,0.00017944,2]
[350379558,1737817850053,-500.0,0.00017944,2]
[350379559,1737817850062,-500.0,0.00017944,2]
[350379560,1737817850072,-529.1007268,0.00017944,2]
[350379561,1737817850083,-500.0,0.00017944,2]
[350379562,1737817850092,-500.0,0.00017944,2]
[350379563,1737817850102,-1337.53,0.00017944,2]
[350379564,1737817850112,-500.0,0.00017944,2]
[350379565,1737817850122,-657.38,0.00017944,2]
[350379566,1737817850132,-997.01,0.00017944,2]
[350379567,1737817850142,-500.0,0.00017944,2]
[350379568,1737817850152,-430.58,0.00017944,2]
[350379569,1737817850162,-496.62,0.00017944,2]
[350379570,1737817850172,-600.23,0.00017944,2]
[350379571,1737817850182,-530.0,0.00017944,2]
[350379572,1737817850192,-1729.67,0.00017944,2]
[350379573,1737817850202,-619.83,0.00017944,2]
[350379574,1737817850211,-500.0,0.00017944,2]
[350379575,1737817850222,-500.0,0.00017944,2]
[350379576,1737817850231,-624.67,0.00017944,2]
[350379577,1737817850241,-806.03,0.00017944,2]
[350379578,1737817850251,-984.41,0.00017944,2]
[350379579,1737817850261,-328.95,0.00017944,2]
[350379580,1737817850271,-500.0,0.00017944,2]
[350379581,1737817850280,-500.0,0.00017944,2]
[350379582,1737817850290,-500.0,0.00017944,2]
[350379583,1737817850300,-500.0,0.00017944,2]
[350379584,1737817850311,-1058.09,0.00017944,2]
[350379585,1737817850321,-500.0,0.00017944,2]
[350379586,1737817850330,-500.0,0.00017944,2]
[350379587,1737817850340,-500.0,0.00017944,2]
[350379588,1737817850350,-961.97,0.00017944,2]
[350379589,1737817850360,-500.0,0.00017944,2]
[350379590,1737817850370,-1405.7,0.00017944,2]
[350379591,1737817850380,-500.0,0.00017944,2]
[350379592,1737817850390,-500.0,0.00017944,2]
[350379593,1737817850400,-580.84,0.00017944,2]
[350379594,1737817850412,-500.0,0.00017944,2]
[350379595,1737817850423,-500.0,0.00017944,2]
[350379596,1737817850437,-500.0,0.00017944,2]
[350379597,1737817850448,-500.0,0.00017944,2]
[350379598,1737817850459,-500.0,0.00017944,2]
[350379599,1737817850471,-500.0,0.00017944,2]
[350379600,1737817850481,-500.0,0.00017944,2]
[350379601,1737817850491,-500.0,0.00017944,2]
[350379602,1737817850501,-794.91,0.00017944,2]
[350379603,1737817850511,-15850.61,0.00018,2]
[350379604,1737817850521,-250.0,0.00018,2]
[350379605,1737817850532,-164.205,0.00018011,2]
[350379606,1737817850541,-2074.008,0.00018011,2]
[350379607,1737817850552,-500.0,0.00018023,2]
[350379608,1737817850563,-706.44,0.00018023,2]
[350379609,1737817850574,-500.0,0.00018023,2]
[350379610,1737817850583,-838.96,0.00018023,2]
[350379611,1737817850594,-645.66,0.00018023,2]
[350379612,1737817850604,-1456.98,0.00018023,2]
[350379613,1737817850613,-500.0,0.00018023,2]
[350379614,1737817850624,-500.0,0.00018023,2]
[350379615,1737817850633,-500.0,0.00018023,2]
[350379616,1737817850643,-1000.0,0.00018038,2]
[350379617,1737817850653,-1297.14587394,0.00018038,2]
[350379618,1737817850663,-11008.57607701,0.00018072,2]
[350379619,1737817850672,-613.26,0.0001808,2]
[350379620,1737817850681,-500.0,0.0001808,2]
[350379621,1737817850691,-500.0,0.0001808,2]
[350379622,1737817850700,-500.0,0.0001808,2]
[350379623,1737817850710,-500.0,0.0001808,2]
[350379624,1737817850720,-500.0,0.0001808,2]
[350379625,1737817850729,-500.0,0.0001808,2]
[350379626,1737817850739,-500.0,0.0001808,2]
[350379627,1737817850749,-500.0,0.0001808,2]
[350379628,1737817850758,-500.0,0.0001808,2]
[350379629,1737817850768,-661.05,0.0001808,2]
[350379630,1737817850778,-500.0,0.0001808,2]
[350379631,1737817850788,-500.0,0.0001808,2]
[350379632,1737817850798,-774.87,0.0001808,2]
[350379633,1737817850807,-500.0,0.0001808,2]
[350379634,1737817850817,-622.57,0.0001808,2]
[350379635,1737817850827,-1023.31,0.0001808,2]
[350379636,1737817850838,-984.99,0.0001808,2]
[350379637,1737817850848,-453.39,0.0001808,2]
[350379638,1737817850858,-500.0,0.0001808,2]
[350379639,1737817850868,-500.0,0.0001808,2]
[350379640,1737817850878,-500.0,0.0001808,2]
[350379641,1737817850888,-500.0,0.0001808,2]
[350379642,1737817850898,-500.0,0.0001808,2]
[350379643,1737817850908,-500.0,0.0001808,2]
[350379644,1737817850918,-710.7,0.0001808,2]
[350379645,1737817850928,-500.0,0.00018081,2]
[350379646,1737817850938,-500.0,0.00018081,2]
[350379647,1737817850948,-500.0,0.00018081,2]
[350379648,1737817850958,-500.0,0.00018081,2]
[350379649,1737817850969,-500.0,0.00018081,2]
[350379650,1737817850980,-500.0,0.00018081,2]
[350379651,1737817850990,-1337.53,0.00018081,2]
[350379652,1737817851000,-500.0,0.00018081,2]
[350379653,1737817851010,-657.38,0.00018081,2]
[350379654,1737817851021,-997.01,0.00018081,2]
[350379655,1737817851031,-500.0,0.00018081,2]
[350379656,1737817851040,-600.23,0.00018081,2]
[350379657,1737817851051,-530.0,0.00018081,2]
[350379658,1737817851063,-1729.67,0.00018081,2]
[350379659,1737817851073,-619.83,0.00018081,2]
[350379660,1737817851083,-500.0,0.00018081,2]
[350379661,1737817851095,-329.85,0.00018081,2]
[350379662,1737817851105,-624.67,0.00018081,2]
[350379663,1737817851115,-806.03,0.00018081,2]
[350379664,1737817851125,-984.41,0.00018081,2]
[350379665,1737817851135,-500.0,0.00018081,2]
[350379666,1737817851145,-500.0,0.00018081,2]
[350379667,1737817851155,-500.0,0.00018081,2]
[350379668,1737817851164,-500.0,0.00018081,2]
[350379669,1737817851175,-1058.09,0.00018081,2]
[350379670,1737817851185,-500.0,0.00018081,2]
[350379671,1737817851195,-500.0,0.00018081,2]
[350379672,1737817851205,-500.0,0.00018081,2]
[350379673,1737817851214,-961.97,0.00018081,2]
[350379674,1737817851225,-500.0,0.00018081,2]
[350379675,1737817851235,-1405.7,0.00018081,2]
[350379676,1737817851245,-500.0,0.00018081,2]
[350379677,1737817851254,-500.0,0.00018081,2]
[350379678,1737817851265,-296.31,0.00018081,2]
[350379679,1737817851275,-500.0,0.00018081,2]
[350379680,1737817851285,-581.31,0.00018081,2]
[350379681,1737817851296,-500.0,0.00018081,2]
[350379682,1737817851306,-500.0,0.00018081,2]
[350379683,1737817851317,-500.0,0.00018081,2]
[350379684,1737817851327,-500.0,0.00018081,2]
[350379685,1737817851338,-500.0,0.00018081,2]
[350379686,1737817851348,-794.91,0.00018081,2]
[350379687,1737817851358,-163.82,0.00018082,2]
[350379688,1737817851368,-275.64,0.00018111,2]
[350379689,1737817851378,-823.0,0.00018132,2]
[350379690,1737817851388,-500.0,0.0001816,2]
[350379691,1737817851399,-706.44,0.0001816,2]
[350379692,1737817851564,-500.0,0.0001816,2]
[350379693,1737817851574,-838.96,0.0001816,2]
[350379694,1737817851584,-645.66,0.0001816,2]
[350379695,1737817851594,-1456.98,0.0001816,2]
[350379696,1737817851604,-500.0,0.0001816,2]
[350379697,1737817851614,-500.0,0.0001816,2]
[350379698,1737817851624,-500.0,0.0001816,2]
[350379699,1737817851633,-500.0,0.00018164,2]
[350379700,1737817851642,-1553.51,0.0001819,2]
[350379701,1737817851652,-1547.28,0.00018192,2]
[350379702,1737817851662,-268.76764227,0.00018217,2]
[350379703,1737817851672,-500.0,0.00018217,2]
[350379704,1737817851683,-500.0,0.00018217,2]
[350379705,1737817851692,-500.0,0.00018217,2]
[350379706,1737817851702,-500.0,0.00018217,2]
[350379707,1737817851712,-500.0,0.00018217,2]
[350379708,1737817851721,-500.0,0.00018217,2]
[350379709,1737817851731,-500.0,0.00018217,2]
[350379710,1737817851741,-661.05,0.00018217,2]
[350379711,1737817851751,-566.21,0.00018217,2]
[350379712,1737817851761,-628.1,0.00018217,2]
[350379713,1737817851771,-774.87,0.00018217,2]
[350379714,1737817851780,-500.0,0.00018217,2]
[350379715,1737817851790,-622.57,0.00018217,2]
[350379716,1737817851800,-1023.31,0.00018217,2]
[350379717,1737817851810,-984.99,0.00018217,2]
[350379718,1737817851820,-500.0,0.00018217,2]
[350379719,1737817851834,-500.0,0.00018217,2]
[350379720,1737817851844,-500.0,0.00018217,2]
[350379721,1737817851854,-500.0,0.00018217,2]
[350379722,1737817851864,-500.0,0.00018217,2]
[350379723,1737817851874,-500.0,0.00018217,2]
[350379724,1737817851884,-710.7,0.00018217,2]
[350379725,1737817851894,-500.0,0.00018218,2]
[350379726,1737817851904,-500.0,0.00018218,2]
[350379727,1737817851913,-500.0,0.00018218,2]
[350379728,1737817851923,-565.06,0.00018218,2]
[350379729,1737817851933,-500.0,0.00018218,2]
[350379730,1737817851943,-500.0,0.00018218,2]
[350379731,1737817851952,-1337.53,0.00018218,2]
[350379732,1737817851962,-500.0,0.00018218,2]
[350379733,1737817851972,-657.38,0.00018218,2]
[350379734,1737817851982,-997.01,0.00018218,2]
[350379735,1737817851992,-500.0,0.00018218,2]
[350379736,1737817852003,-600.23,0.00018218,2]
[350379737,1737817852012,-530.0,0.00018218,2]
[350379738,1737817852022,-1729.67,0.00018218,2]
[350379739,1737817852032,-619.83,0.00018218,2]
[350379740,1737817852043,-500.0,0.00018218,2]
[350379741,1737817852053,-624.67,0.00018218,2]
[350379742,1737817852063,-806.03,0.00018218,2]
[350379743,1737817852073,-984.41,0.00018218,2]
[350379744,1737817852083,-500.0,0.00018218,2]
[350379745,1737817852092,-500.0,0.00018218,2]
[350379746,1737817852102,-500.0,0.00018218,2]
[350379747,1737817852111,-500.0,0.00018218,2]
[350379748,1737817852122,-1058.09,0.00018218,2]
[350379749,1737817852132,-500.0,0.00018218,2]
[350379750,1737817852142,-500.0,0.00018218,2]
[350379751,1737817852151,-500.0,0.00018218,2]
[350379752,1737817852161,-961.97,0.00018218,2]
[350379753,1737817852172,-500.0,0.00018218,2]
[350379754,1737817852182,-1405.7,0.00018218,2]
[350379755,1737817852192,-500.0,0.00018218,2]
[350379756,1737817852201,-500.0,0.00018218,2]
[350379757,1737817852211,-500.0,0.00018218,2]
[350379758,1737817852221,-500.0,0.00018218,2]
[350379759,1737817852230,-549.60999999,0.00018218,2]
[350379760,1737817852240,-500.0,0.00018218,2]
[350379761,1737817852250,-185.13,0.00018218,2]
[350379762,1737817852260,-500.0,0.00018218,2]
[350379763,1737817852270,-794.91,0.00018218,2]
[350379764,1737817852279,-100.01694176,0.00018219,2]
[350379765,1737817852302,-1899.98305824,0.00018219,2]
[350379766,1737817852312,-200.0,0.00018219,2]
[350379767,1737817852322,-3000.0,0.00018219,2]
[350379768,1737817852332,-189.35791879,0.00018219,2]
[350379769,1737817852342,-1297.14587394,0.00018279,2]
[350379770,1737817852352,-357.52228392,0.00018293,2]
[350379771,1737817852362,-502.06307347,0.00018293,2]
[350379772,1737817852373,-500.0,0.00018296,2]
[350379773,1737817852383,-706.44,0.00018296,2]
[350379774,1737817852393,-500.0,0.00018296,2]
[350379775,1737817852402,-838.96,0.00018296,2]
[350379776,1737817852413,-645.66,0.00018296,2]
[350379777,1737817852423,-1456.98,0.00018296,2]
[350379778,1737817852437,-500.0,0.00018296,2]
[350379779,1737817852448,-500.0,0.00018296,2]
[350379780,1737817852458,-500.0,0.00018296,2]
[350379781,1737817852469,-152.64,0.00018329,2]
[350379782,1737817852479,-298.2,0.00018329,2]
[350379783,1737817852489,-500.0,0.00018354,2]
[350379784,1737817852500,-500.0,0.00018354,2]
[350379785,1737817852511,-500.0,0.00018354,2]
[350379786,1737817852522,-500.0,0.00018354,2]
[350379787,1737817852532,-500.0,0.00018354,2]
[350379788,1737817852543,-661.05,0.00018354,2]
[350379789,1737817852552,-774.87,0.00018354,2]
[350379790,1737817852562,-477.7,0.00018354,2]
[350379791,1737817852572,-622.57,0.00018354,2]
[350379792,1737817852583,-1023.31,0.00018354,2]
[350379793,1737817852593,-984.99,0.00018354,2]
[350379794,1737817852603,-500.0,0.00018354,2]
[350379795,1737817852613,-500.0,0.00018354,2]
[350379796,1737817852623,-194.35444967,0.00018354,2]
[350379797,1737817852633,-500.0,0.00018354,2]
[350379798,1737817852644,-500.0,0.00018354,2]
[350379799,1737817852653,-500.0,0.00018354,2]
[350379800,1737817852664,-710.7,0.00018354,2]
[350379801,1737817852674,-500.0,0.00018355,2]
[350379802,1737817852684,-500.0,0.00018355,2]
[350379803,1737817852694,-500.0,0.00018355,2]
[350379804,1737817852704,-500.0,0.00018355,2]
[350379805,1737817852714,-500.0,0.00018355,2]
[350379806,1737817852724,-1337.53,0.00018355,2]
[350379807,1737817852734,-500.0,0.00018355,2]
[350379808,1737817852744,-657.38,0.00018355,2]
[350379809,1737817852754,-997.01,0.00018355,2]
[350379810,1737817852765,-466.1,0.00018355,2]
[350379811,1737817852774,-600.23,0.00018355,2]
[350379812,1737817852784,-530.0,0.00018355,2]
[350379813,1737817852794,-1729.67,0.00018355,2]
[350379814,1737817852804,-619.83,0.00018355,2]
[350379815,1737817852814,-500.0,0.00018355,2]
[350379816,1737817852824,-624.67,0.00018355,2]
[350379817,1737817852834,-806.03,0.00018355,2]
[350379818,1737817852844,-984.41,0.00018355,2]
[350379819,1737817852854,-159.03,0.00018355,2]
[350379820,1737817852864,-500.0,0.00018355,2]
[350379821,1737817852874,-500.0,0.00018355,2]
[350379822,1737817852884,-500.0,0.00018355,2]
[350379823,1737817852894,-1058.09,0.00018355,2]
[350379824,1737817852904,-500.0,0.00018355,2]
[350379825,1737817852920,-500.0,0.00018355,2]
[350379826,1737817852930,-500.0,0.00018355,2]
[350379827,1737817852941,-961.97,0.00018355,2]
[350379828,1737817852952,-500.0,0.00018355,2]
[350379829,1737817852965,-1405.7,0.00018355,2]
[350379830,1737817852975,-500.0,0.00018355,2]
[350379831,1737817852986,-500.0,0.00018355,2]
[350379832,1737817852995,-500.0,0.00018355,2]
[350379833,1737817853005,-500.0,0.00018355,2]
[350379834,1737817853015,-500.0,0.00018355,2]
[350379835,1737817853024,-500.0,0.00018355,2]
[350379836,1737817853034,-794.91,0.00018355,2]
[350379837,1737817853045,-2000.0,0.00018401,2]
[350379838,1737817853054,-200.0,0.00018401,2]
[350379839,1737817853064,-500.0,0.00018433,2]
[350379840,1737817853074,-706.44,0.00018433,2]
[350379841,1737817853084,-570.69,0.00018433,2]
[350379842,1737817853093,-838.96,0.00018433,2]
[350379843,1737817853103,-645.66,0.00018433,2]
[350379844,1737817853113,-1456.98,0.00018433,2]
[350379845,1737817853124,-500.0,0.00018433,2]
[350379846,1737817853134,-231.28,0.00018433,2]
[350379847,1737817853143,-500.0,0.00018433,2]
[350379848,1737817853152,-982.7,0.00018466,2]
[350379849,1737817853162,-500.0,0.00018491,2]
[350379850,1737817853171,-536.96,0.00018491,2]
[350379851,1737817853181,-532.3639333,0.00018491,2]
[350379852,1737817853190,-273.79,0.00018491,2]
[350379853,1737817853200,-661.05,0.00018491,2]
[350379854,1737817853209,-774.87,0.00018491,2]
[350379855,1737817853218,-622.57,0.00018491,2]
[350379856,1737817853228,-1023.31,0.00018491,2]
[350379857,1737817853238,-984.99,0.00018491,2]
[350379858,1737817853248,-500.0,0.00018491,2]
[350379859,1737817853257,-500.0,0.00018491,2]
[350379860,1737817853267,-252.97,0.00018491,2]
[350379861,1737817853277,-500.0,0.00018491,2]
[350379862,1737817853287,-500.0,0.00018491,2]
[350379863,1737817853297,-710.7,0.00018491,2]
[350379864,1737817853308,-515.38105194,0.00018492,2]
[350379865,1737817853323,-500.0,0.00018492,2]
[350379866,1737817853333,-500.0,0.00018492,2]
[350379867,1737817853343,-500.0,0.00018492,2]
[350379868,1737817853353,-253.09,0.00018492,2]
[350379869,1737817853362,-1337.53,0.00018492,2]
[350379870,1737817853372,-500.0,0.00018492,2]
[350379871,1737817853382,-657.38,0.00018492,2]
[350379872,1737817853392,-997.01,0.00018492,2]
[350379873,1737817853401,-600.23,0.00018492,2]
[350379874,1737817853411,-530.0,0.00018492,2]
[350379875,1737817853421,-1729.67,0.00018492,2]
[350379876,1737817853434,-619.83,0.00018492,2]
[350379877,1737817853444,-500.0,0.00018492,2]
[350379878,1737817853454,-624.67,0.00018492,2]
[350379879,1737817853464,-806.03,0.00018492,2]
[350379880,1737817853475,-984.41,0.00018492,2]
[350379881,1737817853485,-540.2,0.00018492,2]
[350379882,1737817853495,-306.91375167,0.00018492,2]
[350379883,1737817853508,-500.0,0.00018492,2]
[350379884,1737817853523,-1058.09,0.00018492,2]
[350379885,1737817853536,-500.0,0.00018492,2]
[350379886,1737817853549,-500.0,0.00018492,2]
[350379887,1737817853560,-500.0,0.00018492,2]
[350379888,1737817853571,-961.97,0.00018492,2]
[350379889,1737817853583,-199.83,0.00018492,2]
[350379890,1737817853596,-1405.7,0.00018492,2]
[350379891,1737817853609,-592.75,0.00018492,2]
[350379892,1737817853620,-386.93,0.00018492,2]
[350379893,1737817853633,-494.84,0.00018492,2]
[350379894,1737817853646,-500.0,0.00018492,2]
[350379895,1737817853658,-500.0,0.00018492,2]
[350379896,1737817853672,-794.91,0.00018492,2]
[350379897,1737817853684,-158.75660413,0.000185,2]
[350379898,1737817853696,-543.18342147,0.00018511,2]
[350379899,1737817853707,-1297.14587394,0.00018521,2]
[350379900,1737817853718,-228.06318773,0.00018559,2]
[350379901,1737817853732,-500.0,0.0001857,2]
[350379902,1737817853745,-706.44,0.0001857,2]
[350379903,1737817853757,-838.96,0.0001857,2]
[350379904,1737817853770,-645.66,0.0001857,2]
[350379905,1737817853783,-1456.98,0.0001857,2]
[350379906,1737817853796,-500.0,0.0001857,2]
[350379907,1737817853809,-500.0,0.0001857,2]
[350379908,1737817853822,-157.48,0.00018594,2]
[350379909,1737817853834,-11008.57607701,0.00018601,2]
[350379910,1737817853846,-505.73882301,0.00018611,2]
[350379911,1737817853858,-500.0,0.00018611,2]
[350379912,1737817853872,-508.14930151,0.00018611,2]
[350379913,1737817853884,-500.0,0.00018611,2]
[350379914,1737817853896,-500.0,0.00018628,2]
[350379915,1737817853908,-661.05,0.00018628,2]
[350379916,1737817853921,-774.87,0.00018628,2]
[350379917,1737817853932,-622.57,0.00018628,2]
[350379918,1737817853944,-1023.31,0.00018628,2]
[350379919,1737817853956,-984.99,0.00018628,2]
[350379920,1737817853969,-500.0,0.00018628,2]
[350379921,1737817853981,-296.63,0.00018628,2]
[350379922,1737817853993,-500.0,0.00018628,2]
[350379923,1737817854004,-710.7,0.00018628,2]
[350379924,1737817854015,-500.0,0.00018629,2]
[350379925,1737817854026,-500.0,0.00018629,2]
[350379926,1737817854037,-500.0,0.00018629,2]
[350379927,1737817854048,-1337.53,0.00018629,2]
[350379928,1737817854062,-500.0,0.00018629,2]
[350379929,1737817854075,-657.38,0.00018629,2]
[350379930,1737817854086,-997.01,0.00018629,2]
[350379931,1737817854096,-600.23,0.00018629,2]
[350379932,1737817854107,-530.0,0.00018629,2]
[350379933,1737817854118,-1729.67,0.00018629,2]
[350379934,1737817854129,-619.83,0.00018629,2]
[350379935,1737817854141,-500.0,0.00018629,2]
[350379936,1737817854154,-624.67,0.00018629,2]
[350379937,1737817854168,-806.03,0.00018629,2]
[350379938,1737817854179,-984.41,0.00018629,2]
[350379939,1737817854190,-500.0,0.00018629,2]
[350379940,1737817854200,-1058.09,0.00018629,2]
[350379941,1737817854211,-500.0,0.00018629,2]
[350379942,1737817854222,-500.0,0.00018629,2]
[350379943,1737817854234,-500.0,0.00018629,2]
[350379944,1737817854245,-961.97,0.00018629,2]
[350379945,1737817854256,-1405.7,0.00018629,2]
[350379946,1737817854268,-500.0,0.00018629,2]
[350379947,1737817854279,-500.0,0.00018629,2]
[350379948,1737817854291,-794.91,0.00018629,2]
[350379949,1737817854303,-500.0,0.00018707,2]
[350379950,1737817854314,-706.44,0.00018707,2]
[350379951,1737817854326,-838.96,0.00018707,2]
[350379952,1737817854338,-645.66,0.00018707,2]